{"text_format":"1","workbook":"xlsx","n_sheets":1,"sheets":["OB2"],"not_rendered":{"charts":0,"images":0,"macros":1,"external_links":0,"defined_names":0,"comments":0,"pivot_tables":0},"unopened":[],"bounds":{"document_bytes":16777216,"sheet_cells":100000,"rows_first":2000,"rows_last":500,"rows_between":2000,"halvings":0,"cell_chars":16384,"cell_head_chars":4096},"cells_cut":0,"cells_raw":0,"read":"whole","date_system":"1900"}

{"sheet":"OB2","index":0,"n_rows":51,"n_cols":8,"rows_kept":51,"cut":false,"hidden":false,"merged":[[13,0,13,4],[22,0,22,4],[30,0,30,4],[3,0,3,1],[11,0,11,3]]}
[]
["Annex K Tender documentation - Bid price and time schedule"]
[]
["Bid price"]
["Stage","Bid price (EUR)"]
["K20",0]
["K80",0]
["K90",0]
["Price total (without VAT)",{"$f":"SUM(B6:B8)","v":0}]
[]
["The BIDDER fills in only the macro \"Fill the price\" and the white fields \"completion date in the format \"dd.mm.yyyy.\""]
["PAYMENT TERMS"]
[null,"payment (EUR)","partial billing amount (%)","payment (%)","final date",null,null,"2024-10-01"]
["K20",null,null,null,null,null,null,"2024-11-01"]
["Advance payment*",{"$f":"($B$22*D15)/$D$22","v":0},30,30,"(fill in)",null,null,"2024-12-01"]
["Parameters of foundations (parameters for OB 6)",0,5,3.5,"(fill in)",null,null,"2025-01-01"]
["Parameters for the others OBs",0,5,3.5,"(fill in)",null,null,"2025-02-01"]
["Project documentation for the implementation of the construction",0,5,3.5,"(fill in)",null,null,"2025-03-01"]
["Pressure test",0,50,35,"(fill in)",null,null,"2025-04-01"]
["Solid fuel ignition",0,25,17.5,"(fill in)",null,null,"2025-05-01"]
["PAC",0,10,7,"(fill in)",null,null,"2025-06-01"]
["total",{"$f":"B6","v":0},{"$f":"SUM(C15:C21)","v":130},{"$f":"SUM(D15:D21)","v":100},null,null,null,"2025-07-01"]
["K80",null,null,null,null,null,null,"2025-08-01"]
["Advance payment*",{"$f":"($B$30*D24)/$D$30","v":0},30,30,"(fill in)",null,null,"2025-09-01"]
["Parameters for the others OBs",{"$f":"($B$30*D25)/$D$30","v":0},5,3.5,"(fill in)",null,null,"2025-10-01"]
["Project documentation for the implementation of the construction",0,5,3.5,"(fill in)",null,null,"2025-11-01"]
["Pressure test",0,55,38.5,"(fill in)",null,null,"2025-12-01"]
["Solid fuel ignition",0,25,17.5,"(fill in)",null,null,"2026-01-01"]
["PAC",0,10,7,"(fill in)",null,null,"2026-02-01"]
["total",{"$f":"B7","v":0},{"$f":"SUM(C23:C29)","v":130},{"$f":"SUM(D23:D29)","v":100},null,null,null,"2026-03-01"]
["K90",null,null,null,null,null,null,"2026-04-01"]
["Advance payment*",{"$f":"($B$38*D32)/$D$38","v":0},30,30,"(fill in)",null,null,"2026-05-01"]
["Parameters for the others OBs",{"$f":"($B$38*D33)/$D$38","v":0},5,3.5,"(fill in)",null,null,"2026-06-01"]
["Project documentation for the implementation of the construction",0,5,3.5,"(fill in)",null,null,"2026-07-01"]
["Pressure test",0,55,38.5,"(fill in)",null,null,"2026-08-01"]
["Solid fuel ignition",0,25,17.5,"(fill in)",null,null,"2026-09-01"]
["PAC",0,10,7,"(fill in)",null,null,"2026-10-01"]
["total",{"$f":"B8","v":0},{"$f":"SUM(C31:C37)","v":130},{"$f":"SUM(D31:D37)","v":100},null,null,null,"2026-11-01"]
[null,null,null,null,null,null,null,"2026-12-01"]
["*The advance payment is included in the amount of payments for individual stages - see the column \"payment (%).",null,null,null,null,null,null,"2027-01-01"]
[null,null,null,null,null,null,null,"2027-02-01"]
[null,null,null,null,null,null,null,"2027-03-01"]
[null,null,null,null,null,null,null,"2027-04-01"]
[null,null,null,null,null,null,null,"2027-05-01"]
[null,null,null,null,null,null,null,"2027-06-01"]
[null,null,null,null,null,null,null,"2027-07-01"]
[null,null,null,null,null,null,null,"2027-08-01"]
[null,null,null,null,null,null,null,"2027-09-01"]
[null,null,null,null,null,null,null,"2027-10-01"]
[null,null,null,null,null,null,null,"2027-11-01"]
[null,null,null,null,null,null,null,"2027-12-01"]